fUSD/lending_fUSD_20260506
["ID","MTS","AMOUNT","RATE_DAILY","PERIOD"]
[421711447,1778051457000,-150.68,0.00042298,120]
[421711452,1778051457000,-1142.1,0.00042347,120]
[421711450,1778051457000,-1131.05,0.00042308,2]
[421711455,1778051457000,-370.41,0.00042362,120]
[421711454,1778051457000,-243.07,0.00042362,120]
[421711446,1778051457000,-3625.0,0.00042298,2]
[421711451,1778051457000,-268.30951427,0.00042335,2]
[421711407,1778051457000,-151.0,0.00042123,30]
[421711437,1778051457000,-150.0,0.00042278,120]
[421711425,1778051457000,-150.0,0.00042167,120]
[421711449,1778051457000,-97612.0,0.000423,60]
[421711428,1778051457000,-152.0,0.00042175,14]
[421711403,1778051457000,-151.0,0.00042123,30]
[421711400,1778051457000,-1410.913946,0.00042123,28]
[421711401,1778051457000,-1529.201548,0.00042123,120]
[421711398,1778051457000,-1410.913946,0.00042123,28]
[421711396,1778051457000,-169.070089,0.00042123,120]
[421711406,1778051457000,-1529.201548,0.00042123,120]
[421711405,1778051457000,-151.0,0.00042123,30]
[421711399,1778051457000,-1410.913946,0.00042123,28]
[421711424,1778051457000,-260.68,0.00042163,14]
[421711404,1778051457000,-1529.201548,0.00042123,120]
[421711408,1778051457000,-151.0,0.00042123,120]
[421711414,1778051457000,-1108.692204,0.00042123,120]
[421711413,1778051457000,-151.0,0.00042123,120]
[421711402,1778051457000,-1529.201548,0.00042123,120]
[421711418,1778051457000,-50000.0,0.00042124,120]
[421711426,1778051457000,-150.0,0.00042167,120]
[421711427,1778051457000,-150.0,0.00042167,120]
[421711412,1778051457000,-151.0,0.00042123,120]
[421711423,1778051457000,-10626.36,0.00042163,14]
[421711422,1778051457000,-640.17,0.00042128,120]
[421711416,1778051457000,-1108.692204,0.00042123,120]
[421711420,1778051457000,-50000.0,0.00042126,120]
[421711419,1778051457000,-50000.0,0.00042125,120]
[421711409,1778051457000,-151.0,0.00042123,120]
[421711415,1778051457000,-1108.692204,0.00042123,120]
[421711411,1778051457000,-151.0,0.00042123,120]
[421711410,1778051457000,-151.0,0.00042123,120]
[421711417,1778051457000,-1108.692204,0.00042123,120]
[421711495,1778051458000,-500.0,0.00042464,120]
[421711496,1778051458000,-509.69111078,0.00042464,120]
[421711501,1778051458000,-500.0,0.00042464,120]
[421711484,1778051458000,-500.0,0.00042464,120]
[421711481,1778051458000,-500.0,0.00042464,120]
[421711485,1778051458000,-500.0,0.00042464,120]
[421711479,1778051458000,-500.0,0.00042464,120]
[421711482,1778051458000,-500.0,0.00042464,120]
[421711489,1778051458000,-500.0,0.00042464,120]
[421711494,1778051458000,-500.0,0.00042464,120]
[421711509,1778051458000,-500.0,0.00042464,120]
[421711493,1778051458000,-500.0,0.00042464,120]
[421711502,1778051458000,-500.0,0.00042464,120]
[421711497,1778051458000,-259.20048071,0.00042464,120]
[421711500,1778051458000,-500.0,0.00042464,120]
[421711499,1778051458000,-500.0,0.00042464,120]
[421711503,1778051458000,-500.0,0.00042464,120]
[421711498,1778051458000,-500.0,0.00042464,120]
[421711505,1778051458000,-500.0,0.00042464,120]
[421711515,1778051458000,-500.0,0.00042464,120]
[421711516,1778051458000,-592.7767285,0.00042464,120]
[421711504,1778051458000,-500.0,0.00042464,120]
[421711483,1778051458000,-500.0,0.00042464,120]
[421711492,1778051458000,-500.0,0.00042464,120]
[421711487,1778051458000,-500.0,0.00042464,120]
[421711470,1778051458000,-268.92707037,0.00042447,7]
[421711491,1778051458000,-500.0,0.00042464,120]
[421711511,1778051458000,-500.0,0.00042464,120]
[421711456,1778051458000,-168.0,0.0004238,120]
[421711458,1778051458000,-150.68,0.00042398,120]
[421711462,1778051458000,-418.0,0.00042402,2]
[421711457,1778051458000,-418.0,0.00042387,2]
[421711460,1778051458000,-4500.0,0.000424,30]
[421711466,1778051458000,-5000.0,0.0004241,30]
[421711459,1778051458000,-273.299498,0.000424,51]
[421711461,1778051458000,-151.0,0.000424,120]
[421711463,1778051458000,-391.0,0.00042407,2]
[421711465,1778051458000,-10000.0,0.0004241,15]
[421711464,1778051458000,-5000.0,0.0004241,15]
[421711474,1778051458000,-244.23947473,0.00042448,2]
[421711471,1778051458000,-846.48838544,0.00042447,28]
[421711467,1778051458000,-10000.0,0.0004241,30]
[421711469,1778051458000,-418.0,0.00042415,2]
[421711468,1778051458000,-700.0,0.0004241,120]
[421711472,1778051458000,-244.23947473,0.00042448,2]
[421711473,1778051458000,-244.23947473,0.00042448,2]
[421711475,1778051458000,-3902.16670746,0.00042448,2]
[421711476,1778051458000,-154.99317027,0.00042448,2]
[421711477,1778051458000,-500.0,0.00042464,120]
[421711478,1778051458000,-500.0,0.00042464,120]
[421711480,1778051458000,-500.0,0.00042464,120]
[421711490,1778051458000,-500.0,0.00042464,120]
[421711486,1778051458000,-500.0,0.00042464,120]
[421711510,1778051458000,-500.0,0.00042464,120]
[421711488,1778051458000,-500.0,0.00042464,120]
[421711508,1778051458000,-500.0,0.00042464,120]
[421711534,1778051458000,-500.0,0.00042465,120]
[421711547,1778051458000,-500.0,0.00042465,120]
[421711555,1778051458000,-500.0,0.00042465,120]
[421711553,1778051458000,-500.0,0.00042465,120]
[421711548,1778051458000,-500.0,0.00042465,120]
[421711545,1778051458000,-500.0,0.00042465,120]
[421711546,1778051458000,-500.0,0.00042465,120]
[421711544,1778051458000,-500.0,0.00042465,120]
[421711554,1778051458000,-500.0,0.00042465,120]
[421711543,1778051458000,-500.0,0.00042465,120]
[421711549,1778051458000,-218.16,0.00042465,120]
[421711540,1778051458000,-441.04,0.00042465,120]
[421711550,1778051458000,-416.62826954,0.00042465,120]
[421711556,1778051458000,-500.0,0.00042465,120]
[421711562,1778051458000,-500.0,0.00042465,120]
[421711561,1778051458000,-500.0,0.00042465,120]
[421711557,1778051458000,-500.0,0.00042465,120]
[421711564,1778051458000,-1783.1,0.00042465,120]
[421711560,1778051458000,-500.0,0.00042465,120]
[421711559,1778051458000,-500.0,0.00042465,120]
[421711563,1778051458000,-1783.1,0.00042465,120]
[421711558,1778051458000,-500.0,0.00042465,120]
[421711565,1778051458000,-318.06688219,0.00042465,120]
[421711506,1778051458000,-500.0,0.00042464,120]
[421711551,1778051458000,-500.0,0.00042465,120]
[421711538,1778051458000,-500.0,0.00042465,120]
[421711552,1778051458000,-500.0,0.00042465,120]
[421711535,1778051458000,-500.0,0.00042465,120]
[421711507,1778051458000,-500.0,0.00042464,120]
[421711537,1778051458000,-500.0,0.00042465,120]
[421711513,1778051458000,-500.0,0.00042464,120]
[421711514,1778051458000,-500.0,0.00042464,120]
[421711512,1778051458000,-500.0,0.00042464,120]
[421711517,1778051458000,-232.88856075,0.00042464,70]
[421711519,1778051458000,-159.02361056,0.00042465,120]
[421711520,1778051458000,-500.0,0.00042465,120]
[421711521,1778051458000,-500.0,0.00042465,120]
[421711525,1778051458000,-664.07,0.00042465,120]
[421711523,1778051458000,-664.07,0.00042465,120]
[421711524,1778051458000,-664.07,0.00042465,120]
[421711518,1778051458000,-13290.85464699,0.00042464,70]
[421711533,1778051458000,-500.0,0.00042465,120]
[421711528,1778051458000,-500.0,0.00042465,30]
[421711527,1778051458000,-500.0,0.00042465,30]
[421711529,1778051458000,-500.0,0.00042465,30]
[421711522,1778051458000,-664.07,0.00042465,120]
[421711531,1778051458000,-526.9339,0.00042465,120]
[421711532,1778051458000,-500.0,0.00042465,120]
[421711541,1778051458000,-500.0,0.00042465,120]
[421711530,1778051458000,-193.84829903,0.00042465,120]
[421711539,1778051458000,-500.0,0.00042465,120]
[421711542,1778051458000,-500.0,0.00042465,120]
[421711536,1778051458000,-500.0,0.00042465,120]
[421711526,1778051458000,-500.0,0.00042465,30]
[421711591,1778051459000,-241.44759621,0.00042465,120]
[421711593,1778051459000,-500.0,0.00042465,120]
[421711585,1778051459000,-500.0,0.00042465,120]
[421711592,1778051459000,-500.0,0.00042465,120]
[421711583,1778051459000,-500.0,0.00042465,120]
[421711582,1778051459000,-500.0,0.00042465,120]
[421711590,1778051459000,-582.10574026,0.00042465,120]
[421711589,1778051459000,-500.0,0.00042465,120]
[421711588,1778051459000,-500.0,0.00042465,120]
[421711587,1778051459000,-500.0,0.00042465,120]
[421711595,1778051459000,-500.0,0.00042465,120]
[421711584,1778051459000,-500.0,0.00042465,120]
[421711586,1778051459000,-500.0,0.00042465,120]
[421711581,1778051459000,-500.0,0.00042465,2]
[421711571,1778051459000,-444.96367314,0.00042465,120]
[421711579,1778051459000,-1153.64691721,0.00042465,120]
[421711578,1778051459000,-1783.1,0.00042465,120]
[421711577,1778051459000,-1783.1,0.00042465,120]
[421711576,1778051459000,-1783.1,0.00042465,120]
[421711575,1778051459000,-1783.1,0.00042465,120]
[421711574,1778051459000,-800.76944467,0.00042465,120]
[421711572,1778051459000,-201.36944467,0.00042465,120]
[421711573,1778051459000,-982.33055533,0.00042465,120]
[421711569,1778051459000,-337.83142825,0.00042465,120]
[421711570,1778051459000,-1136.76688219,0.00042465,120]
[421711566,1778051459000,-1465.03311781,0.00042465,120]
[421711568,1778051459000,-1445.26857175,0.00042465,120]
[421711567,1778051459000,-1783.1,0.00042465,120]
[421711603,1778051459000,-500.0,0.00042465,30]
[421711580,1778051459000,-629.45308279,0.00042465,120]
[421711594,1778051459000,-500.0,0.00042465,120]
[421711597,1778051459000,-202.08812646,0.00042465,120]
[421711599,1778051459000,-267.59948045,0.00042465,30]
[421711604,1778051459000,-500.0,0.00042465,30]
[421711624,1778051459000,-158.70262192,0.00042465,120]
[421711625,1778051459000,-500.0,0.00042465,120]
[421711626,1778051459000,-209.72018003,0.00042465,120]
[421711623,1778051459000,-341.29737808,0.00042465,120]
[421711622,1778051459000,-15.53023756,0.00042465,120]
[421711629,1778051459000,-500.0,0.00042465,120]
[421711621,1778051459000,-484.46976244,0.00042465,120]
[421711628,1778051459000,-500.0,0.00042465,120]
[421711620,1778051459000,-500.0,0.00042465,120]
[421711613,1778051459000,-500.0,0.00042465,30]
[421711612,1778051459000,-295.62170764,0.00042465,30]
[421711614,1778051459000,-500.0,0.00042465,30]
[421711611,1778051459000,-417.0,0.00042298,2]
[421711610,1778051459000,-417.0,0.00039298,2]
[421711627,1778051459000,-170.35280383,0.00042465,120]
[421711616,1778051459000,-187.96,0.00042465,30]
[421711605,1778051459000,-204.37829236,0.00042465,30]
[421711608,1778051459000,-234.71722465,0.00038277,2]
[421711598,1778051459000,-232.40051955,0.00042465,30]
[421711602,1778051459000,-394.37898707,0.00042465,30]
[421711596,1778051459000,-352.50493473,0.00042465,120]
[421711601,1778051459000,-105.62101293,0.00042465,30]
[421711600,1778051459000,-500.0,0.00042465,30]
[421711606,1778051459000,-231.538251,0.0002,2]
[421711609,1778051459000,-300.0,0.00038277,2]
[421711615,1778051459000,-500.0,0.00042465,30]
[421711617,1778051459000,-500.0,0.00042465,2]
[421711618,1778051459000,-482.48683644,0.00042465,2]
[421711619,1778051459000,-17.51316356,0.00042465,2]
[421711607,1778051459000,-65.28277535,0.00038277,2]
[421711648,1778051460000,-269.54836665,0.00042465,120]
[421711655,1778051460000,-500.0,0.00042465,120]
[421711654,1778051460000,-500.0,0.00042465,120]
[421711651,1778051460000,-500.0,0.00042465,120]
[421711656,1778051460000,-500.0,0.00042465,120]
[421711665,1778051460000,-914.77,0.00042465,120]
[421711666,1778051460000,-914.77,0.00042465,120]
[421711657,1778051460000,-500.0,0.00042465,120]
[421711667,1778051460000,-914.77,0.00042465,120]
[421711659,1778051460000,-500.0,0.00042465,120]
[421711660,1778051460000,-914.77,0.00042465,120]
[421711664,1778051460000,-914.77,0.00042465,120]
[421711662,1778051460000,-914.77,0.00042465,120]
[421711663,1778051460000,-914.77,0.00042465,120]
[421711669,1778051460000,-914.77,0.00042465,120]
[421711675,1778051460000,-299.98771783,0.00042465,120]
[421711650,1778051460000,-500.0,0.00042465,120]
[421711661,1778051460000,-914.77,0.00042465,120]
[421711647,1778051460000,-406.77364039,0.00042465,120]
[421711633,1778051460000,-207.81902566,0.00042465,120]
[421711646,1778051460000,-500.0,0.00042465,120]
[421711678,1778051460000,-581.0879,0.00042465,120]
[421711630,1778051460000,-500.0,0.00042465,120]
[421711631,1778051460000,-500.0,0.00042465,120]
[421711641,1778051460000,-2017.6692658,0.00042465,120]
[421711632,1778051460000,-215.24069481,0.00042465,120]
[421711634,1778051460000,-380.30899489,0.00042465,120]
[421711638,1778051460000,-514.31533696,0.00042465,120]
[421711639,1778051460000,-77.26651363,0.00042465,120]
[421711645,1778051460000,-500.0,0.00042465,120]
[421711636,1778051460000,-2172.89767653,0.00042465,120]
[421711635,1778051460000,-26.05232347,0.00042465,120]
[421711640,1778051460000,-2121.68348637,0.00042465,120]
[421711642,1778051460000,-181.2807342,0.00042465,120]
[421711652,1778051460000,-500.0,0.00042465,120]
[421711653,1778051460000,-500.0,0.00042465,120]
[421711643,1778051460000,-2198.95,0.00042465,120]
[421711649,1778051460000,-445.01025436,0.00042465,120]
[421711644,1778051460000,-500.0,0.00042465,120]
[421711637,1778051460000,-2198.95,0.00042465,120]
[421711674,1778051460000,-500.0,0.00042465,120]
[421711658,1778051460000,-201.26253,0.00042465,120]
[421711670,1778051460000,-914.77,0.00042465,120]
[421711695,1778051460000,-1476.24,0.00042465,120]
[421711698,1778051460000,-1476.24,0.00042465,120]
[421711699,1778051460000,-1476.24,0.00042465,120]
[421711697,1778051460000,-1476.24,0.00042465,120]
[421711700,1778051460000,-913.51415152,0.00042465,120]
[421711701,1778051460000,-300.0,0.00038277,2]
[421711702,1778051460000,-56.18214,0.00042465,120]
[421711703,1778051460000,-398.50772753,0.00027397,10]
[421711696,1778051460000,-1476.24,0.00042465,120]
[421711704,1778051460000,-1460.0,0.00027397,10]
[421711705,1778051460000,-4580.66725332,0.00027397,10]
[421711707,1778051460000,-300.0,0.00038277,2]
[421711709,1778051460000,-506.54370848,0.00042465,120]
[421711711,1778051460000,-285.05489923,0.00042465,120]
[421711710,1778051460000,-1476.24,0.00042465,120]
[421711714,1778051460000,-1476.24,0.00042465,120]
[421711713,1778051460000,-158.22443044,0.00042465,120]
[421711672,1778051460000,-500.0,0.00042465,120]
[421711708,1778051460000,-300.0,0.00038277,2]
[421711693,1778051460000,-1476.24,0.00042465,120]
[421711706,1778051460000,-18750.57501915,0.00027397,10]
[421711691,1778051460000,-1476.24,0.00042465,120]
[421711694,1778051460000,-500.0,0.00042465,120]
[421711671,1778051460000,-914.77,0.00042465,120]
[421711668,1778051460000,-914.77,0.00042465,120]
[421711676,1778051460000,-500.0,0.00042465,120]
[421711673,1778051460000,-611.63979313,0.00042465,120]
[421711680,1778051460000,-264.9032198,0.00042465,120]
[421711688,1778051460000,-1476.24,0.00042465,120]
[421711712,1778051460000,-1476.24,0.00042465,120]
[421711689,1778051460000,-1476.24,0.00042465,120]
[421711677,1778051460000,-500.0,0.00042465,120]
[421711679,1778051460000,-282.83629198,0.00042465,120]
[421711686,1778051460000,-1476.24,0.00042465,120]
[421711685,1778051460000,-1476.24,0.00042465,120]
[421711682,1778051460000,-500.0,0.00042465,120]
[421711683,1778051460000,-500.0,0.00042465,120]
[421711687,1778051460000,-1476.24,0.00042465,120]
[421711681,1778051460000,-205.30178992,0.00042465,120]
[421711684,1778051460000,-324.37312953,0.00042465,120]
[421711690,1778051460000,-1476.24,0.00042465,120]
[421711692,1778051460000,-1476.24,0.00042465,120]
[421711751,1778051461000,-182.98232718,0.00042465,120]
[421711750,1778051461000,-647.92513328,0.00042465,120]
[421711753,1778051461000,-500.0,0.00042465,120]
[421711748,1778051461000,-308.78779206,0.00042465,120]
[421711759,1778051461000,-594.36,0.00042465,120]
[421711740,1778051461000,-171.28207283,0.00042465,120]
[421711746,1778051461000,-516.6,0.00042465,120]
[421711739,1778051461000,-500.0,0.00042465,120]
[421711752,1778051461000,-270.14017798,0.00042465,120]
[421711745,1778051461000,-500.0,0.00042465,120]
[421711749,1778051461000,-204.06481201,0.00042465,120]
[421711756,1778051461000,-209.91459436,0.00042465,120]
[421711761,1778051461000,-594.36,0.00042465,120]
[421711758,1778051461000,-594.36,0.00042465,120]
[421711755,1778051461000,-409.40141068,0.00042465,120]
[421711757,1778051461000,-372.22475689,0.00042465,120]
[421711760,1778051461000,-594.36,0.00042465,120]
[421711763,1778051461000,-594.36,0.00042465,120]
[421711762,1778051461000,-594.36,0.00042465,120]
[421711768,1778051461000,-594.36,0.00042465,120]
[421711769,1778051461000,-251.0116995,0.00042465,120]
[421711765,1778051461000,-594.36,0.00042465,120]
[421711770,1778051461000,-594.36,0.00042465,120]
[421711741,1778051461000,-500.0,0.00042465,120]
[421711754,1778051461000,-202.6908473,0.00042465,120]
[421711743,1778051461000,-500.0,0.00042465,120]
[421711721,1778051461000,-181.98409784,0.00042465,120]
[421711742,1778051461000,-500.0,0.00042465,120]
[421711715,1778051461000,-1476.24,0.00042465,120]
[421711716,1778051461000,-1476.24,0.00042465,120]
[421711717,1778051461000,-1476.24,0.00042465,120]
[421711718,1778051461000,-1476.24,0.00042465,120]
[421711719,1778051461000,-1476.24,0.00042465,120]
[421711766,1778051461000,-594.36,0.00042465,120]
[421711723,1778051461000,-500.0,0.00042465,120]
[421711720,1778051461000,-1476.32995062,0.00042465,120]
[421711724,1778051461000,-182.12375104,0.00042465,120]
[421711727,1778051461000,-206.44850788,0.00042465,120]
[421711725,1778051461000,-225.45067702,0.00042465,120]
[421711744,1778051461000,-500.0,0.00042465,120]
[421711735,1778051461000,-252.1832496,0.00042465,120]
[421711731,1778051461000,-412.25564674,0.00042465,120]
[421711729,1778051461000,-500.0,0.00042465,120]
[421711728,1778051461000,-234.05182548,0.00042465,120]
[421711730,1778051461000,-251.30268076,0.00042465,120]
[421711732,1778051461000,-500.0,0.00042465,120]
[421711733,1778051461000,-500.0,0.00042465,120]
[421711734,1778051461000,-500.0,0.00042465,120]
[421711736,1778051461000,-500.0,0.00042465,120]
[421711737,1778051461000,-617.18435222,0.00042465,120]
[421711738,1778051461000,-458.77587923,0.00042465,120]
[421711747,1778051461000,-312.62636921,0.00042465,120]
[421711726,1778051461000,-500.0,0.00042465,120]
[421711764,1778051461000,-594.36,0.00042465,120]
[421711722,1778051461000,-154.50089017,0.00042465,120]
[421711772,1778051461000,-594.36,0.00042465,120]
[421711802,1778051461000,-1464.99,0.00042465,30]
[421711803,1778051461000,-500.0,0.00042465,120]
[421711799,1778051461000,-1464.99,0.00042465,30]
[421711800,1778051461000,-1464.99,0.00042465,30]
[421711805,1778051461000,-500.0,0.00042465,120]
[421711807,1778051461000,-500.0,0.00042465,120]
[421711810,1778051461000,-1464.99,0.00042465,30]
[421711808,1778051461000,-1464.99,0.00042465,30]
[421711806,1778051461000,-1464.99,0.00042465,30]
[421711809,1778051461000,-500.0,0.00042465,120]
[421711811,1778051461000,-500.0,0.00042465,120]
[421711804,1778051461000,-1464.99,0.00042465,30]
[421711814,1778051461000,-1464.99,0.00042465,30]
[421711812,1778051461000,-622.20239761,0.00042465,120]
[421711813,1778051461000,-1464.99,0.00042465,30]
[421711822,1778051461000,-1464.99,0.00042465,30]
[421711815,1778051461000,-1464.99,0.00042465,30]
[421711818,1778051461000,-1464.99,0.00042465,30]
[421711819,1778051461000,-1464.99,0.00042465,30]
[421711817,1778051461000,-1464.99,0.00042465,30]
[421711824,1778051461000,-500.0,0.00042465,120]
[421711821,1778051461000,-1464.99,0.00042465,30]
[421711823,1778051461000,-1465.01749327,0.00042465,30]
[421711767,1778051461000,-594.36,0.00042465,120]
[421711816,1778051461000,-500.0,0.00042465,120]
[421711801,1778051461000,-500.0,0.00042465,120]
[421711820,1778051461000,-1464.99,0.00042465,30]
[421711798,1778051461000,-581.21107004,0.00042465,120]
[421711796,1778051461000,-1464.99,0.00042465,30]
[421711782,1778051461000,-594.52,0.00042465,120]
[421711771,1778051461000,-594.36,0.00042465,120]
[421711778,1778051461000,-594.36,0.00042465,120]
[421711774,1778051461000,-594.36,0.00042465,120]
[421711783,1778051461000,-217.68951286,0.00042465,120]
[421711776,1778051461000,-594.36,0.00042465,120]
[421711773,1778051461000,-594.36,0.00042465,120]
[421711775,1778051461000,-594.36,0.00042465,120]
[421711779,1778051461000,-594.36,0.00042465,120]
[421711781,1778051461000,-594.36,0.00042465,120]
[421711780,1778051461000,-594.36,0.00042465,120]
[421711777,1778051461000,-594.36,0.00042465,120]
[421711791,1778051461000,-1464.99,0.00042465,30]
[421711785,1778051461000,-236.99293103,0.00042465,120]
[421711795,1778051461000,-1464.99,0.00042465,30]
[421711789,1778051461000,-299.86949851,0.00042465,120]
[421711790,1778051461000,-259.69578862,0.00042465,120]
[421711788,1778051461000,-500.0,0.00042465,120]
[421711787,1778051461000,-500.0,0.00042465,120]
[421711794,1778051461000,-1464.99,0.00042465,30]
[421711786,1778051461000,-189.0980137,0.00042465,120]
[421711792,1778051461000,-1464.99,0.00042465,30]
[421711784,1778051461000,-450.27196868,0.00042465,120]
[421711793,1778051461000,-1464.99,0.00042465,30]
[421711797,1778051461000,-1464.99,0.00042465,30]
[421711853,1778051462000,-500.0,0.00042465,120]
[421711849,1778051462000,-316.45412614,0.00042465,120]
[421711858,1778051462000,-500.0,0.00042465,120]
[421711857,1778051462000,-2042.51,0.00042465,120]
[421711856,1778051462000,-500.0,0.00042465,120]
[421711848,1778051462000,-500.0,0.00042465,120]
[421711855,1778051462000,-2042.51,0.00042465,120]
[421711854,1778051462000,-500.0,0.00042465,120]
[421711859,1778051462000,-500.0,0.00042465,120]
[421711851,1778051462000,-154.48436396,0.00042465,120]
[421711852,1778051462000,-168.32272258,0.00042465,120]
[421711860,1778051462000,-2042.51,0.00042465,120]
[421711870,1778051462000,-500.0,0.00042465,120]
[421711871,1778051462000,-2042.51,0.00042465,120]
[421711861,1778051462000,-500.0,0.00042465,120]
[421711864,1778051462000,-2042.51,0.00042465,120]
[421711847,1778051462000,-276.45904597,0.00042465,120]
[421711850,1778051462000,-169.63198966,0.00042465,7]
[421711846,1778051462000,-218.63396636,0.00042465,120]
[421711835,1778051462000,-500.0,0.00042465,120]
[421711845,1778051462000,-205.3441167,0.00042465,120]
[421711862,1778051462000,-500.0,0.00042465,120]
[421711829,1778051462000,-193.30169017,0.00042465,120]
[421711828,1778051462000,-500.0,0.00042465,120]
[421711825,1778051462000,-211.94710245,0.00042465,120]
[421711827,1778051462000,-500.0,0.00042465,120]
[421711826,1778051462000,-500.0,0.00042465,120]
[421711832,1778051462000,-286.13673005,0.00042465,120]
[421711830,1778051462000,-176.53493712,0.00042465,120]
[421711833,1778051462000,-500.0,0.00042465,120]
[421711837,1778051462000,-332.05541535,0.00042465,120]
[421711838,1778051462000,-500.0,0.00042465,120]
[421711840,1778051462000,-209.57681152,0.00042465,120]
[421711834,1778051462000,-500.0,0.00042465,120]
[421711836,1778051462000,-500.0,0.00042465,120]
[421711831,1778051462000,-294.8269739,0.00042465,120]
[421711839,1778051462000,-500.0,0.00042465,120]
[421711842,1778051462000,-296.10451819,0.00042465,120]
[421711843,1778051462000,-305.1814995,0.00042465,120]
[421711841,1778051462000,-203.53765153,0.00042465,120]
[421711844,1778051462000,-215.76520577,0.00042465,120]
[421711863,1778051462000,-500.0,0.00042465,120]
[421711869,1778051462000,-500.0,0.00042465,120]
[421711867,1778051462000,-500.0,0.00042465,120]
[421711894,1778051462000,-500.0,0.00042465,120]
[421711892,1778051462000,-500.0,0.00042465,120]
[421711896,1778051462000,-500.0,0.00042465,120]
[421711895,1778051462000,-500.0,0.00042465,120]
[421711897,1778051462000,-205.73831304,0.00042465,120]
[421711898,1778051462000,-500.0,0.00042465,120]
[421711900,1778051462000,-500.0,0.00042465,120]
[421711899,1778051462000,-500.0,0.00042465,120]
[421711893,1778051462000,-500.0,0.00042465,120]
[421711901,1778051462000,-500.0,0.00042465,120]
[421711905,1778051462000,-500.0,0.00042465,120]
[421711904,1778051462000,-500.0,0.00042465,120]
[421711907,1778051462000,-229.54757575,0.00042465,120]
[421711906,1778051462000,-500.0,0.00042465,120]
[421711908,1778051462000,-500.0,0.00042465,120]
[421711910,1778051462000,-500.0,0.00042465,120]
[421711909,1778051462000,-500.0,0.00042465,120]
[421711866,1778051462000,-261.90593041,0.00042465,120]
[421711903,1778051462000,-202.58056933,0.00042465,120]
[421711885,1778051462000,-2042.51,0.00042465,120]
[421711902,1778051462000,-500.0,0.00042465,120]
[421711888,1778051462000,-500.0,0.00042465,120]
[421711865,1778051462000,-500.0,0.00042465,120]
[421711891,1778051462000,-500.0,0.00042465,120]
[421711868,1778051462000,-2042.51,0.00042465,120]
[421711873,1778051462000,-500.0,0.00042465,120]
[421711880,1778051462000,-2042.51,0.00042465,120]
[421711881,1778051462000,-500.0,0.00042465,120]
[421711882,1778051462000,-2042.51,0.00042465,120]
[421711883,1778051462000,-500.0,0.00042465,120]
[421711872,1778051462000,-199.7696019,0.00042465,120]
[421711875,1778051462000,-500.0,0.00042465,120]
[421711884,1778051462000,-500.0,0.00042465,120]
[421711879,1778051462000,-500.0,0.00042465,120]
[421711890,1778051462000,-274.91411606,0.00042465,120]
[421711886,1778051462000,-500.0,0.00042465,120]
[421711889,1778051462000,-500.0,0.00042465,120]
[421711878,1778051462000,-500.0,0.00042465,120]
[421711887,1778051462000,-500.0,0.00042465,120]
[421711874,1778051462000,-2042.51,0.00042465,120]
[421711877,1778051462000,-2042.51,0.00042465,120]
[421711876,1778051462000,-2042.51,0.00042465,120]
[421711952,1778051463000,-6596.86,0.00042465,120]
[421711939,1778051463000,-1202.39,0.00042465,120]
[421711937,1778051463000,-1202.39,0.00042465,120]
[421711940,1778051463000,-1202.39,0.00042465,120]
[421711931,1778051463000,-1202.39,0.00042465,120]